[Event "Early-Titled-Tuesday-Blitz-March-26-2024"]
[Site "Chess.com"]
[Date "2024.03.26"]
[Round "5"]
[White "DreamsAreFake"]
[Black "frederiksvane"]
[Result "0-1"]
[WhiteElo "2745"]
[BlackElo "2984"]
[TimeControl "180+1"]
[EndTime "8:53:52 PDT"]
[Termination "frederiksvane won on time"]

1. Nf3 {[%clk 0:02:58]} 1... d5 {[%clk 0:02:58.6]} 2. g3 {[%clk 0:02:58.1]} 2...
Bg4 {[%clk 0:02:59]} 3. Bg2 {[%clk 0:02:58.4]} 3... e6 {[%clk 0:02:59.5]} 4. O-O
{[%clk 0:02:59]} 4... Nd7 {[%clk 0:03:00.2]} 5. h3 {[%clk 0:02:58.8]} 5... Bxf3
{[%clk 0:03:00.7]} 6. Bxf3 {[%clk 0:02:59]} 6... c6 {[%clk 0:03:01.4]} 7. d3
{[%clk 0:02:59.6]} 7... Bc5 {[%clk 0:03:01.3]} 8. e4 {[%clk 0:02:59.9]} 8... Ne7
{[%clk 0:03:02]} 9. Qe2 {[%clk 0:02:57.6]} 9... Qc7 {[%clk 0:03:01.6]} 10. Kg2
{[%clk 0:02:53.8]} 10... O-O {[%clk 0:03:00.8]} 11. Nd2 {[%clk 0:02:50.9]} 11...
Rae8 {[%clk 0:02:58.6]} 12. Nb3 {[%clk 0:02:47.2]} 12... Bd6 {[%clk 0:02:59.1]}
13. h4 {[%clk 0:02:43.1]} 13... f5 {[%clk 0:02:57.3]} 14. Re1 {[%clk 0:02:27.6]}
14... dxe4 {[%clk 0:02:30.2]} 15. dxe4 {[%clk 0:02:26]} 15... f4 {[%clk
0:02:30.7]} 16. Nd4 {[%clk 0:02:13.5]} 16... Ng6 {[%clk 0:02:08.8]} 17. h5
{[%clk 0:01:56.8]} 17... Nge5 {[%clk 0:02:08.1]} 18. gxf4 {[%clk 0:01:37.2]}
18... Nxf3 {[%clk 0:02:08.4]} 19. Qxf3 {[%clk 0:01:35.7]} 19... Bxf4 {[%clk
0:02:09]} 20. Bxf4 {[%clk 0:01:32]} 20... Rxf4 {[%clk 0:02:09.9]} 21. Qg3 {[%clk
0:01:15.7]} 21... Qe5 {[%clk 0:02:10]} 22. Rad1 {[%clk 0:01:06.5]} 22... Ref8
{[%clk 0:02:02.1]} 23. f3 {[%clk 0:00:43.6]} 23... Nf6 {[%clk 0:01:47.4]} 24.
Ne2 {[%clk 0:00:34.7]} 24... Nxh5 {[%clk 0:01:46.6]} 25. Qh3 {[%clk 0:00:24.9]}
25... Qg5+ {[%clk 0:01:26.1]} 26. Kf2 {[%clk 0:00:25.2]} 26... Rxe4 {[%clk
0:01:26.5]} 27. Nd4 {[%clk 0:00:16.3]} 27... Nf4 {[%clk 0:01:24.2]} 28. Qg3
{[%clk 0:00:13.8]} 28... Rxe1 {[%clk 0:01:15.3]} 29. Qxg5 {[%clk 0:00:07]} 29...
Nh3+ {[%clk 0:01:14]} 30. Kxe1 {[%clk 0:00:06.6]} 30... Nxg5 {[%clk 0:01:14.8]}
31. Ke2 {[%clk 0:00:06.6]} 31... e5 {[%clk 0:01:15]} 32. Nb3 {[%clk 0:00:05.4]}
32... h5 {[%clk 0:01:03.6]} 33. Rd7 {[%clk 0:00:04]} 33... Rf7 {[%clk 0:01:03]}
34. Rd8+ {[%clk 0:00:03.8]} 34... Kh7 {[%clk 0:01:03.4]} 35. Nc5 {[%clk
0:00:03.5]} 35... Nxf3 {[%clk 0:01:02.2]} 36. Ne4 {[%clk 0:00:03.6]} 36... Nd4+
{[%clk 0:01:00.9]} 37. Kd3 {[%clk 0:00:02.8]} 37... Kg6 {[%clk 0:00:55.9]} 38.
c3 {[%clk 0:00:02.5]} 38... Ne6 {[%clk 0:00:49.7]} 39. Nd6 {[%clk 0:00:02.3]}
39... Re7 {[%clk 0:00:40.1]} 0-1

[Event "Early-Titled-Tuesday-Blitz-March-26-2024"]
[Site "Chess.com"]
[Date "2024.03.26"]
[Round "5"]
[White "RamonManon0g"]
[Black "guillembaches"]
[Result "1-0"]
[WhiteElo "2398"]
[BlackElo "2525"]
[TimeControl "180+1"]
[EndTime "8:53:54 PDT"]
[Termination "RamonManon0g won on time"]

1. e4 {[%clk 0:03:00.9]} 1... d5 {[%clk 0:03:00.6]} 2. exd5 {[%clk 0:03:00.9]}
2... Qxd5 {[%clk 0:03:01.2]} 3. Nc3 {[%clk 0:03:01.2]} 3... Qa5 {[%clk
0:03:00.9]} 4. d4 {[%clk 0:03:01.7]} 4... Nf6 {[%clk 0:03:01.3]} 5. Nf3 {[%clk
0:03:02.3]} 5... Bf5 {[%clk 0:03:01.6]} 6. h3 {[%clk 0:03:02.5]} 6... e6 {[%clk
0:02:59.7]} 7. Bd3 {[%clk 0:03:03]} 7... Nc6 {[%clk 0:02:57.6]} 8. O-O {[%clk
0:03:02.1]} 8... O-O-O {[%clk 0:02:49.9]} 9. Bxf5 {[%clk 0:03:02.1]} 9... Qxf5
{[%clk 0:02:49.8]} 10. Be3 {[%clk 0:03:03]} 10... e5 {[%clk 0:02:43.8]} 11. d5
{[%clk 0:03:01.4]} 11... Bb4 {[%clk 0:02:28]} 12. Nh4 {[%clk 0:02:53.1]} 12...
Qd7 {[%clk 0:01:44.7]} 13. dxc6 {[%clk 0:02:49.5]} 13... Qxc6 {[%clk 0:01:45]}
14. Qf3 {[%clk 0:02:48.5]} 14... e4 {[%clk 0:01:43.2]} 15. Qf5+ {[%clk
0:02:46.8]} 15... Kb8 {[%clk 0:01:43.3]} 16. Rfd1 {[%clk 0:02:28.8]} 16... Bxc3
{[%clk 0:01:40.8]} 17. bxc3 {[%clk 0:02:28.2]} 17... Qxc3 {[%clk 0:01:41.1]} 18.
Qb5 {[%clk 0:01:59.2]} 18... Qxc2 {[%clk 0:01:33.9]} 19. Rdc1 {[%clk 0:01:57.1]}
19... Qd3 {[%clk 0:01:33.8]} 20. Qc5 {[%clk 0:01:55.1]} 20... Qa6 {[%clk
0:00:56.1]} 21. Qxc7+ {[%clk 0:01:55]} 21... Ka8 {[%clk 0:00:56.7]} 22. Qxf7
{[%clk 0:01:52.9]} 22... Nd5 {[%clk 0:00:56.7]} 23. Bg5 {[%clk 0:01:31.3]} 23...
Rd6 {[%clk 0:00:42.6]} 24. Rd1 {[%clk 0:01:19.9]} 24... Qb5 {[%clk 0:00:35.1]}
25. Qxg7 {[%clk 0:01:09.4]} 25... Re8 {[%clk 0:00:34.7]} 26. Qxh7 {[%clk
0:01:04.8]} 26... a6 {[%clk 0:00:34.9]} 27. Rab1 {[%clk 0:01:04.4]} 27... Qc6
{[%clk 0:00:32.2]} 28. Rdc1 {[%clk 0:01:04.5]} 28... Qd7 {[%clk 0:00:26.6]} 29.
Qxd7 {[%clk 0:01:00.3]} 29... Rxd7 {[%clk 0:00:27.5]} 30. Be3 {[%clk 0:00:53.8]}
30... Rf7 {[%clk 0:00:25.6]} 31. Rc5 {[%clk 0:00:45.3]} 31... Nxe3 {[%clk
0:00:21.9]} 32. fxe3 {[%clk 0:00:45.3]} 32... Rg8 {[%clk 0:00:21.2]} 33. Rbc1
{[%clk 0:00:42.2]} 33... Ka7 {[%clk 0:00:18.8]} 34. Nf5 {[%clk 0:00:38.9]} 34...
Rg6 {[%clk 0:00:17.7]} 35. h4 {[%clk 0:00:35.1]} 35... Rgf6 {[%clk 0:00:16.9]}
36. Nd4 {[%clk 0:00:32.4]} 36... Rg7 {[%clk 0:00:17.1]} 37. h5 {[%clk
0:00:31.1]} 37... Rh6 {[%clk 0:00:15.7]} 38. Nf5 {[%clk 0:00:28.2]} 38... Rg5
{[%clk 0:00:14.5]} 39. Nxh6 {[%clk 0:00:28.3]} 1-0

[Event "Early-Titled-Tuesday-Blitz-March-26-2024"]
[Site "Chess.com"]
[Date "2024.03.26"]
[Round "5"]
[White "hsd2016"]
[Black "Tolya2"]
[Result "1-0"]
[WhiteElo "2323"]
[BlackElo "2478"]
[TimeControl "180+1"]
[EndTime "8:53:55 PDT"]
[Termination "hsd2016 won by resignation"]

1. a3 {[%clk 0:03:00.9]} 1... Nf6 {[%clk 0:02:57.5]} 2. Nf3 {[%clk 0:03:00.3]}
2... g6 {[%clk 0:02:56.6]} 3. g3 {[%clk 0:03:00.4]} 3... Bg7 {[%clk 0:02:56.7]}
4. Bg2 {[%clk 0:03:00.9]} 4... b6 {[%clk 0:02:55]} 5. d4 {[%clk 0:02:58.3]} 5...
Bb7 {[%clk 0:02:54.5]} 6. c4 {[%clk 0:02:58.5]} 6... O-O {[%clk 0:02:49.6]} 7.
Nc3 {[%clk 0:02:58.7]} 7... d6 {[%clk 0:02:45.8]} 8. O-O {[%clk 0:02:59.1]} 8...
Nbd7 {[%clk 0:02:44.4]} 9. Re1 {[%clk 0:02:58.3]} 9... Re8 {[%clk 0:02:41]} 10.
e4 {[%clk 0:02:57.2]} 10... e5 {[%clk 0:02:39.6]} 11. d5 {[%clk 0:02:56.9]}
11... a5 {[%clk 0:02:38]} 12. Be3 {[%clk 0:02:52.9]} 12... Nc5 {[%clk
0:02:34.6]} 13. Nd2 {[%clk 0:02:52.3]} 13... a4 {[%clk 0:02:33.1]} 14. Qc2
{[%clk 0:02:50.6]} 14... Nfd7 {[%clk 0:02:25.9]} 15. Rad1 {[%clk 0:02:46]} 15...
Rf8 {[%clk 0:02:22.6]} 16. Bh3 {[%clk 0:02:31]} 16... Bc8 {[%clk 0:02:19.1]} 17.
Nf1 {[%clk 0:02:18.5]} 17... Nb3 {[%clk 0:02:13.4]} 18. Nxa4 {[%clk 0:01:57.7]}
18... Nd4 {[%clk 0:02:10.8]} 19. Bxd4 {[%clk 0:01:54.7]} 19... exd4 {[%clk
0:02:10.8]} 20. b3 {[%clk 0:01:51.2]} 20... Ne5 {[%clk 0:02:04.4]} 21. Bg2
{[%clk 0:01:44.8]} 21... d3 {[%clk 0:02:03.7]} 22. Qd2 {[%clk 0:01:42.2]} 22...
Bg4 {[%clk 0:02:00.1]} 23. Rc1 {[%clk 0:01:39.4]} 23... Be2 {[%clk 0:01:59.5]}
24. Nc3 {[%clk 0:01:31.7]} 24... Rxa3 {[%clk 0:01:57.3]} 25. Nxe2 {[%clk
0:01:31.1]} 25... dxe2 {[%clk 0:01:55.7]} 26. Qxe2 {[%clk 0:01:31.4]} 26... Rxb3
{[%clk 0:01:55]} 27. Ne3 {[%clk 0:01:30.9]} 27... Qd7 {[%clk 0:01:47.2]} 28.
Red1 {[%clk 0:01:28.5]} 28... Nd3 {[%clk 0:01:43.1]} 29. Rxd3 {[%clk 0:01:27]}
29... Rxd3 {[%clk 0:01:41.9]} 30. Qxd3 {[%clk 0:01:27.2]} 30... Ra8 {[%clk
0:01:41.5]} 31. h4 {[%clk 0:01:19.1]} 31... Bh6 {[%clk 0:01:40.9]} 32. Rb1
{[%clk 0:01:10]} 32... Ra2 {[%clk 0:01:39.9]} 33. Re1 {[%clk 0:01:02.6]} 33...
Qa4 {[%clk 0:01:39.2]} 34. Ng4 {[%clk 0:01:00]} 34... Bg7 {[%clk 0:01:36.1]} 35.
e5 {[%clk 0:00:59.5]} 35... dxe5 {[%clk 0:01:32]} 36. Nxe5 {[%clk 0:00:58.9]}
36... Qa5 {[%clk 0:01:24.6]} 37. Re3 {[%clk 0:00:46.3]} 37... Qb4 {[%clk
0:01:15]} 38. Nc6 {[%clk 0:00:41.4]} 38... Qd6 {[%clk 0:01:07.3]} 39. Re8+
{[%clk 0:00:36.3]} 39... Bf8 {[%clk 0:01:06.5]} 40. Qd4 {[%clk 0:00:35.1]} 40...
f6 {[%clk 0:00:56.7]} 41. Bh3 {[%clk 0:00:26.6]} 41... Kg7 {[%clk 0:00:51.1]}
42. Re6 {[%clk 0:00:21]} 42... Qa3 {[%clk 0:00:40.8]} 43. Qxf6+ {[%clk
0:00:19.9]} 43... Kg8 {[%clk 0:00:40.1]} 44. Re1 {[%clk 0:00:19.2]} 44... Qd6
{[%clk 0:00:34]} 45. Be6+ {[%clk 0:00:19]} 1-0

[Event "Early-Titled-Tuesday-Blitz-March-26-2024"]
[Site "Chess.com"]
[Date "2024.03.26"]
[Round "5"]
[White "TangerineandLemon25"]
[Black "Binary010"]
[Result "0-1"]
[WhiteElo "2591"]
[BlackElo "2799"]
[TimeControl "180+1"]
[EndTime "8:53:57 PDT"]
[Termination "Binary010 won on time"]

1. e4 {[%clk 0:02:57]} 1... c5 {[%clk 0:02:58.4]} 2. Nf3 {[%clk 0:02:56.7]} 2...
d6 {[%clk 0:02:57.8]} 3. d4 {[%clk 0:02:53.8]} 3... cxd4 {[%clk 0:02:58.7]} 4.
Nxd4 {[%clk 0:02:54.3]} 4... Nf6 {[%clk 0:02:59.1]} 5. Nc3 {[%clk 0:02:54.9]}
5... a6 {[%clk 0:02:59.6]} 6. Rg1 {[%clk 0:02:52.8]} 6... h5 {[%clk 0:02:52.7]}
7. h3 {[%clk 0:02:50.9]} 7... g6 {[%clk 0:02:52]} 8. g4 {[%clk 0:02:49.4]} 8...
hxg4 {[%clk 0:02:51.4]} 9. hxg4 {[%clk 0:02:50.3]} 9... Bg7 {[%clk 0:02:51.4]}
10. g5 {[%clk 0:02:50.1]} 10... Nh5 {[%clk 0:02:17.6]} 11. Be3 {[%clk
0:02:49.2]} 11... Nc6 {[%clk 0:02:09.4]} 12. Qd2 {[%clk 0:02:47.8]} 12... Bd7
{[%clk 0:01:46.1]} 13. O-O-O {[%clk 0:02:37.2]} 13... Rc8 {[%clk 0:01:24.7]} 14.
Be2 {[%clk 0:02:31.5]} 14... Qa5 {[%clk 0:01:20.7]} 15. Kb1 {[%clk 0:02:20.5]}
15... b5 {[%clk 0:01:17.1]} 16. Nxc6 {[%clk 0:01:48.3]} 16... Bxc6 {[%clk
0:01:08.1]} 17. Bd4 {[%clk 0:01:48.2]} 17... b4 {[%clk 0:01:01.5]} 18. Nd5
{[%clk 0:01:25.6]} 18... Bxd5 {[%clk 0:01:01]} 19. exd5 {[%clk 0:01:22.3]} 19...
Qc7 {[%clk 0:00:27]} 20. Bxh5 {[%clk 0:01:05.9]} 20... Bxd4 {[%clk 0:00:26.3]}
21. Bg4 {[%clk 0:01:06.1]} 21... Bc3 {[%clk 0:00:15]} 22. bxc3 {[%clk
0:00:45.8]} 22... bxc3 {[%clk 0:00:15.9]} 23. Qc1 {[%clk 0:00:46.1]} 23... Rb8+
{[%clk 0:00:16.3]} 24. Ka1 {[%clk 0:00:46.6]} 24... Rb2 {[%clk 0:00:16.3]} 25.
Be2 {[%clk 0:00:39.3]} 25... Rh4 {[%clk 0:00:12.3]} 26. f4 {[%clk 0:00:21.7]}
26... Qc5 {[%clk 0:00:06.2]} 27. Rh1 {[%clk 0:00:21.3]} 27... Qa3 {[%clk
0:00:02.5]} 28. Bc4 {[%clk 0:00:18.6]} 28... Rxf4 {[%clk 0:00:03.3]} 29. Bb3
{[%clk 0:00:14.6]} 29... Rb4 {[%clk 0:00:02.8]} 0-1

[Event "Early-Titled-Tuesday-Blitz-March-26-2024"]
[Site "Chess.com"]
[Date "2024.03.26"]
[Round "5"]
[White "ajeale2"]
[Black "mary-sanna"]
[Result "1-0"]
[WhiteElo "2436"]
[BlackElo "2226"]
[TimeControl "180+1"]
[EndTime "8:53:59 PDT"]
[Termination "ajeale2 won by resignation"]

1. e4 {[%clk 0:03:00.9]} 1... c5 {[%clk 0:02:51.4]} 2. Nc3 {[%clk 0:02:57.8]}
2... Nc6 {[%clk 0:02:50.7]} 3. g3 {[%clk 0:02:56.9]} 3... g6 {[%clk 0:02:50.1]}
4. Bg2 {[%clk 0:02:57.4]} 4... Bg7 {[%clk 0:02:50.5]} 5. Nge2 {[%clk 0:02:58]}
5... e6 {[%clk 0:02:50]} 6. O-O {[%clk 0:02:58.7]} 6... Nge7 {[%clk 0:02:50.2]}
7. d3 {[%clk 0:02:59.4]} 7... O-O {[%clk 0:02:49.8]} 8. Be3 {[%clk 0:02:57]}
8... b6 {[%clk 0:02:48.7]} 9. d4 {[%clk 0:02:55]} 9... cxd4 {[%clk 0:02:35]} 10.
Nxd4 {[%clk 0:02:55.9]} 10... Bb7 {[%clk 0:02:30.7]} 11. Ndb5 {[%clk 0:02:54.4]}
11... d5 {[%clk 0:02:22.4]} 12. exd5 {[%clk 0:02:54.2]} 12... Nxd5 {[%clk
0:02:21.8]} 13. Nxd5 {[%clk 0:02:53.2]} 13... exd5 {[%clk 0:02:21.2]} 14. Qxd5
{[%clk 0:02:34.7]} 14... Qxd5 {[%clk 0:02:09.2]} 15. Bxd5 {[%clk 0:02:33.3]}
15... Bxb2 {[%clk 0:02:09.8]} 16. Rad1 {[%clk 0:02:19.7]} 16... Bf6 {[%clk
0:01:57.8]} 17. Nd6 {[%clk 0:02:15.6]} 17... Rab8 {[%clk 0:01:04.3]} 18. Nxb7
{[%clk 0:02:14.5]} 18... Nb4 {[%clk 0:01:04.5]} 19. Be4 {[%clk 0:02:05.6]} 19...
Nxa2 {[%clk 0:00:59.3]} 20. Bf4 {[%clk 0:02:02.5]} 20... Nc3 {[%clk 0:00:41.6]}
21. Bxb8 {[%clk 0:01:53.8]} 21... Nxd1 {[%clk 0:00:41.6]} 22. Bd6 {[%clk
0:01:37.8]} 22... Re8 {[%clk 0:00:36.8]} 23. Bc6 {[%clk 0:01:35.9]} 23... Rc8
{[%clk 0:00:31]} 24. Bd7 {[%clk 0:01:35.5]} 24... Rxc2 {[%clk 0:00:20.3]} 25.
Rxd1 {[%clk 0:01:31.7]} 25... a5 {[%clk 0:00:17.4]} 26. Ba4 {[%clk 0:01:23.3]}
26... Ra2 {[%clk 0:00:16.4]} 27. Bb3 {[%clk 0:01:21.9]} 27... Rb2 {[%clk
0:00:16.5]} 28. Bd5 {[%clk 0:00:50.5]} 28... Bc3 {[%clk 0:00:12.3]} 29. Nd8
{[%clk 0:00:40.7]} 29... a4 {[%clk 0:00:10.9]} 30. Nxf7 {[%clk 0:00:36.8]} 30...
Kg7 {[%clk 0:00:10.9]} 31. Be5+ {[%clk 0:00:32.1]} 31... Bxe5 {[%clk 0:00:09.8]}
32. Nxe5 {[%clk 0:00:32.4]} 32... a3 {[%clk 0:00:09.1]} 33. Nc4 {[%clk
0:00:32.3]} 33... Rb3 {[%clk 0:00:07.6]} 34. Ra1 {[%clk 0:00:30.5]} 34... Rd3
{[%clk 0:00:05.8]} 35. Nxb6 {[%clk 0:00:28.5]} 35... Kf6 {[%clk 0:00:06.1]} 36.
Bc4 {[%clk 0:00:26.3]} 36... Rc3 {[%clk 0:00:06.1]} 37. Nd5+ {[%clk 0:00:26.3]}
1-0

[Event "Early-Titled-Tuesday-Blitz-March-26-2024"]
[Site "Chess.com"]
[Date "2024.03.26"]
[Round "5"]
[White "jcmesafischer"]
[Black "Better_Chess_Faster"]
[Result "0-1"]
[WhiteElo "2350"]
[BlackElo "2180"]
[TimeControl "180+1"]
[EndTime "8:54:01 PDT"]
[Termination "Better_Chess_Faster won by checkmate"]

1. e4 {[%clk 0:02:52.9]} 1... c6 {[%clk 0:02:59.6]} 2. Nc3 {[%clk 0:02:52.1]}
2... d5 {[%clk 0:02:59.7]} 3. Nf3 {[%clk 0:02:52.5]} 3... Nf6 {[%clk 0:02:58.6]}
4. exd5 {[%clk 0:02:49.7]} 4... cxd5 {[%clk 0:02:57.7]} 5. Ne5 {[%clk
0:02:50.3]} 5... e6 {[%clk 0:02:55.7]} 6. d4 {[%clk 0:02:46.7]} 6... Nbd7 {[%clk
0:02:55.1]} 7. Bd3 {[%clk 0:02:37.4]} 7... Nxe5 {[%clk 0:02:54.6]} 8. dxe5
{[%clk 0:02:37.5]} 8... Nd7 {[%clk 0:02:54.1]} 9. Qe2 {[%clk 0:02:36.5]} 9... g6
{[%clk 0:02:52]} 10. O-O {[%clk 0:02:35.9]} 10... Bg7 {[%clk 0:02:50.8]} 11. f4
{[%clk 0:02:35.8]} 11... O-O {[%clk 0:02:49.8]} 12. Be3 {[%clk 0:02:35.2]} 12...
b6 {[%clk 0:02:48.2]} 13. Rad1 {[%clk 0:02:13.3]} 13... Nc5 {[%clk 0:02:47.4]}
14. Bb5 {[%clk 0:02:12.5]} 14... a6 {[%clk 0:02:42.8]} 15. Bc6 {[%clk
0:02:04.4]} 15... Rb8 {[%clk 0:02:40.8]} 16. b4 {[%clk 0:02:04.5]} 16... Nd7
{[%clk 0:02:34.3]} 17. a4 {[%clk 0:01:29]} 17... Qc7 {[%clk 0:02:30.2]} 18. b5
{[%clk 0:01:22.7]} 18... Nc5 {[%clk 0:02:28.1]} 19. Qf2 {[%clk 0:01:10.9]} 19...
Nd7 {[%clk 0:02:09.5]} 20. Ne2 {[%clk 0:01:00.3]} 20... a5 {[%clk 0:01:52.3]}
21. c4 {[%clk 0:00:51.4]} 21... dxc4 {[%clk 0:01:47.5]} 22. Nc3 {[%clk
0:00:51.2]} 22... Rd8 {[%clk 0:01:35.2]} 23. Rd2 {[%clk 0:00:47.3]} 23... Bb7
{[%clk 0:01:17.8]} 24. Bxb7 {[%clk 0:00:44.7]} 24... Rxb7 {[%clk 0:01:17]} 25.
Rfd1 {[%clk 0:00:44.7]} 25... Bf8 {[%clk 0:01:11.1]} 26. Ne4 {[%clk 0:00:43.7]}
26... Be7 {[%clk 0:01:09.2]} 27. Qf3 {[%clk 0:00:29]} 27... Nc5 {[%clk
0:00:38.1]} 28. Rxd8+ {[%clk 0:00:27.7]} 28... Bxd8 {[%clk 0:00:37.6]} 29. Nxc5
{[%clk 0:00:27.4]} 29... bxc5 {[%clk 0:00:37.8]} 30. Rxd8+ {[%clk 0:00:24.2]}
30... Qxd8 {[%clk 0:00:34.6]} 31. Qxb7 {[%clk 0:00:24.9]} 31... Qd1+ {[%clk
0:00:34.1]} 32. Kf2 {[%clk 0:00:24.7]} 32... Qc2+ {[%clk 0:00:33]} 33. Kg3
{[%clk 0:00:21.6]} 33... Qd3 {[%clk 0:00:32.7]} 34. Qc8+ {[%clk 0:00:19.9]}
34... Kg7 {[%clk 0:00:32.1]} 35. Qxc5 {[%clk 0:00:20.8]} 35... c3 {[%clk
0:00:31.2]} 36. b6 {[%clk 0:00:21]} 36... c2 {[%clk 0:00:31]} 37. b7 {[%clk
0:00:21]} 37... Qb3 {[%clk 0:00:29.9]} 38. b8=Q {[%clk 0:00:20.3]} 38... Qxb8
{[%clk 0:00:29.5]} 39. Qxc2 {[%clk 0:00:20.9]} 39... Qb4 {[%clk 0:00:29.7]} 40.
Bc5 {[%clk 0:00:20.2]} 40... Qe1+ {[%clk 0:00:25.5]} 41. Kh3 {[%clk 0:00:19.7]}
41... h5 {[%clk 0:00:23.7]} 42. Qf2 {[%clk 0:00:17.4]} 42... Qe4 {[%clk
0:00:22.5]} 43. Be7 {[%clk 0:00:17.2]} 43... Qf5+ {[%clk 0:00:22.2]} 44. Kg3
{[%clk 0:00:12.1]} 44... Qg4# {[%clk 0:00:22.4]} 0-1

[Event "Early-Titled-Tuesday-Blitz-March-26-2024"]
[Site "Chess.com"]
[Date "2024.03.26"]
[Round "5"]
[White "sorch29"]
[Black "babyking1205"]
[Result "0-1"]
[WhiteElo "2461"]
[BlackElo "2624"]
[TimeControl "180+1"]
[EndTime "8:54:04 PDT"]
[Termination "babyking1205 won by checkmate"]

1. c4 {[%clk 0:02:56.7]} 1... e5 {[%clk 0:02:57.3]} 2. g3 {[%clk 0:02:55.8]}
2... g6 {[%clk 0:02:56]} 3. Bg2 {[%clk 0:02:55.9]} 3... Bg7 {[%clk 0:02:56.3]}
4. Nc3 {[%clk 0:02:56.4]} 4... Ne7 {[%clk 0:02:56.5]} 5. d3 {[%clk 0:02:54.7]}
5... d6 {[%clk 0:02:56.6]} 6. e3 {[%clk 0:02:53.4]} 6... O-O {[%clk 0:02:56.6]}
7. Nge2 {[%clk 0:02:54.1]} 7... c5 {[%clk 0:02:56.6]} 8. O-O {[%clk 0:02:54.3]}
8... Nbc6 {[%clk 0:02:56.9]} 9. a3 {[%clk 0:02:54.7]} 9... Bg4 {[%clk
0:02:56.8]} 10. h3 {[%clk 0:02:53.5]} 10... Be6 {[%clk 0:02:56.6]} 11. Nd5
{[%clk 0:02:53]} 11... Qd7 {[%clk 0:02:54.5]} 12. Kh2 {[%clk 0:02:53]} 12... h6
{[%clk 0:02:54]} 13. Rb1 {[%clk 0:02:52.3]} 13... Bxd5 {[%clk 0:02:53.8]} 14.
cxd5 {[%clk 0:02:52]} 14... Nd8 {[%clk 0:02:54.5]} 15. b4 {[%clk 0:02:44.9]}
15... b6 {[%clk 0:02:54.8]} 16. e4 {[%clk 0:02:26.8]} 16... f5 {[%clk
0:02:53.1]} 17. f4 {[%clk 0:02:22.1]} 17... Nf7 {[%clk 0:02:51.8]} 18. bxc5
{[%clk 0:02:04.5]} 18... bxc5 {[%clk 0:02:51.5]} 19. Bd2 {[%clk 0:01:58.1]}
19... Kh7 {[%clk 0:02:47.2]} 20. Qc2 {[%clk 0:01:49.2]} 20... Rab8 {[%clk
0:02:44.9]} 21. Qc4 {[%clk 0:01:44.8]} 21... exf4 {[%clk 0:02:41.5]} 22. gxf4
{[%clk 0:01:42.9]} 22... Qc7 {[%clk 0:02:33.9]} 23. Qa6 {[%clk 0:01:40.9]} 23...
Rxb1 {[%clk 0:02:29.5]} 24. Rxb1 {[%clk 0:01:41.8]} 24... Rb8 {[%clk 0:02:29.7]}
25. Rb5 {[%clk 0:01:41.4]} 25... Rxb5 {[%clk 0:02:28.7]} 26. Qxb5 {[%clk
0:01:42.3]} 26... Qb6 {[%clk 0:02:29.3]} 27. Qe8 {[%clk 0:01:17.9]} 27... Qb2
{[%clk 0:02:25.2]} 28. Qxe7 {[%clk 0:01:16]} 28... Qxd2 {[%clk 0:02:25]} 29. Ng3
{[%clk 0:01:14.8]} 29... Kg8 {[%clk 0:02:22.4]} 30. Qe6 {[%clk 0:01:04.8]} 30...
Qxf4 {[%clk 0:02:21.3]} 31. Qxg6 {[%clk 0:01:01.4]} 31... Ne5 {[%clk 0:02:16.1]}
32. Qe8+ {[%clk 0:00:56.9]} 32... Kh7 {[%clk 0:02:05.7]} 33. exf5 {[%clk
0:00:57.3]} 33... Bf6 {[%clk 0:01:57.4]} 34. Qb8 {[%clk 0:00:16.5]} 34... Bh4
{[%clk 0:01:51.7]} 35. Qxa7+ {[%clk 0:00:13.9]} 35... Kg8 {[%clk 0:01:51.3]} 36.
Qb8+ {[%clk 0:00:14]} 36... Kg7 {[%clk 0:01:51.5]} 37. f6+ {[%clk 0:00:08.3]}
37... Bxf6 {[%clk 0:01:51]} 38. Qc7+ {[%clk 0:00:07.2]} 38... Nf7 {[%clk
0:01:46.2]} 39. Qd7 {[%clk 0:00:05.7]} 39... Kf8 {[%clk 0:01:26.2]} 40. Qf5
{[%clk 0:00:04.4]} 40... Qd4 {[%clk 0:01:25.1]} 41. Qe4 {[%clk 0:00:03.1]} 41...
Qb2 {[%clk 0:01:23.2]} 42. a4 {[%clk 0:00:02.7]} 42... Be5 {[%clk 0:01:23.4]}
43. Qf3 {[%clk 0:00:02.1]} 43... Qb4 {[%clk 0:01:21.1]} 44. h4 {[%clk
0:00:01.2]} 44... Qxh4+ {[%clk 0:01:20.9]} 45. Bh3 {[%clk 0:00:01.9]} 45... Qxa4
{[%clk 0:01:20]} 46. Kg2 {[%clk 0:00:02.5]} 46... Qc2+ {[%clk 0:01:17.9]} 47.
Kg1 {[%clk 0:00:03]} 47... Qc1+ {[%clk 0:01:17.7]} 48. Nf1 {[%clk 0:00:03.2]}
48... Qg5+ {[%clk 0:01:17.6]} 49. Kh1 {[%clk 0:00:02.8]} 49... Ke7 {[%clk
0:01:17.7]} 50. Be6 {[%clk 0:00:03.1]} 50... Qh4+ {[%clk 0:01:17.5]} 51. Kg2
{[%clk 0:00:02]} 51... Ng5 {[%clk 0:01:16.6]} 52. Qg4 {[%clk 0:00:02]} 52... Qe1
{[%clk 0:01:08.9]} 53. Qf5 {[%clk 0:00:01.4]} 53... Qe2+ {[%clk 0:01:08.9]} 54.
Kg1 {[%clk 0:00:02]} 54... Nf3+ {[%clk 0:01:08.1]} 55. Kh1 {[%clk 0:00:02.5]}
55... Qxf1# {[%clk 0:01:08.4]} 0-1